Workbook

Sheet Laporan Keuangan
B2: LAPORAN KEUANGAN TAHUNAN | K2: 2016 | N2: Pilih tahun laporan dalam Sel L2
B3: NAMA PERUSAHAAN ANDA | N3: Untuk mengedit data, pilih lembar Input Data Keuangan
B5: METRIK UTAMA | D5: Klik untuk mengubah laporan Metrik Utama
B7: =Perhitungan!B8 -> PENGHASILAN | D7: =Perhitungan!B9 -> LABA BERSIH | F7: =Perhitungan!B10 -> BUNGA | H7: =Perhitungan!B11 -> DEPRESIASI | J7: =Perhitungan!B12 -> LABA OPERASI
B8: =IFERROR(Perhitungan!G8,"") -> Rp1,805,838,800 | D8: =IFERROR(Perhitungan!G9,"") -> Rp674,748,500 | F8: =IFERROR(Perhitungan!G10,"") -> Rp37,894,700 | H8: =IFERROR(Perhitungan!G11,"") -> Rp55,468,800 | J8: =IFERROR(Perhitungan!G12,"") -> Rp734,259,900
B9: =Perhitungan!H8 -> 0% | D9: =Perhitungan!H9 -> 2% | F9: =Perhitungan!H10 -> 14% | H9: =Perhitungan!H11 -> 9% | J9: =Perhitungan!H12 -> -5%
B13: SEMUA METRIK | D13: Jangan ubah informasi di bawah ini. Klik untuk memasukkan Data Keuangan
B15: METRIK | D15: ="TAHUN LAPORAN ("&TahunDipilih&")" -> TAHUN LAPORAN (2016) | F15: ="TAHUN SEBELUMNYA ("&TahunDipilih-1&")" -> TAHUN SEBELUMNYA (2015) | H15: % PERUBAHAN | I15: =CONCATENATE("TREN ", Tahun," TAHUN") -> TREN 5 TAHUN
B16: =Perhitungan!B15 -> PENGHASILAN | D16: =IF($B16="","",Perhitungan!G15) -> Rp1,805,838,800.00 | F16: =IF($B16="","",Perhitungan!F15) -> Rp1,800,266,300.00 | H16: =IFERROR(D16/F16-1,"") -> 0%
B17: =Perhitungan!B16 -> PENGELUARAN OPERASI | D17: =IF($B17="","",Perhitungan!G16) -> Rp944,194,500.00 | F17: =IF($B17="","",Perhitungan!F16) -> Rp808,833,300.00 | H17: 17%
B18: =Perhitungan!B17 -> LABA OPERASI | D18: =IF($B18="","",Perhitungan!G17) -> Rp734,259,900.00 | F18: =IF($B18="","",Perhitungan!F17) -> Rp773,178,300.00 | H18: -5%
B19: =Perhitungan!B18 -> DEPRESIASI | D19: =IF($B19="","",Perhitungan!G18) -> Rp55,468,800.00 | F19: =IF($B19="","",Perhitungan!F18) -> Rp50,684,200.00 | H19: 9%
B20: =Perhitungan!B19 -> BUNGA | D20: =IF($B20="","",Perhitungan!G19) -> Rp37,894,700.00 | F20: =IF($B20="","",Perhitungan!F19) -> Rp33,383,000.00 | H20: 14%
B21: =Perhitungan!B20 -> LABA BERSIH | D21: =IF($B21="","",Perhitungan!G20) -> Rp674,748,500.00 | F21: =IF($B21="","",Perhitungan!F20) -> Rp662,721,000.00 | H21: 2%
B22: =Perhitungan!B21 -> PAJAK | D22: =IF($B22="","",Perhitungan!G21) -> Rp314,082,500.00 | F22: =IF($B22="","",Perhitungan!F21) -> Rp294,245,300.00 | H22: 7%
B23: =Perhitungan!B22 -> LABA SETELAH PAJAK | D23: =IF($B23="","",Perhitungan!G22) -> Rp502,476,800.00 | F23: =IF($B23="","",Perhitungan!F22) -> Rp424,382,000.00 | H23: 18%
B24: =Perhitungan!B23 -> METRIK 1 | D24: =IF($B24="","",Perhitungan!G23) -> Rp199,600.00 | F24: =IF($B24="","",Perhitungan!F23) -> Rp167,800.00 | H24: 19%
B25: =Perhitungan!B24 -> METRIK 2 | D25: =IF($B25="","",Perhitungan!G24) -> Rp260,100.00 | F25: =IF($B25="","",Perhitungan!F24) -> Rp218,400.00 | H25: 19%
B26: =Perhitungan!B25 -> METRIK 3 | D26: =IF($B26="","",Perhitungan!G25) -> Rp310,800.00 | F26: =IF($B26="","",Perhitungan!F25) -> Rp263,900.00 | H26: 18%
B27: =Perhitungan!B26 -> METRIK 4 | D27: =IF($B27="","",Perhitungan!G26) -> Rp149,200.00 | F27: =IF($B27="","",Perhitungan!F26) -> Rp145,900.00 | H27: 2%
B28: =Perhitungan!B27 -> METRIK 5 | D28: =IF($B28="","",Perhitungan!G27) -> Rp10,300.00 | F28: =IF($B28="","",Perhitungan!F27) -> Rp10,000.00 | H28: 3%
B29: =Perhitungan!B28 -> METRIK 6 | D29: =IF($B29="","",Perhitungan!G28) -> Rp3,400.00 | F29: =IF($B29="","",Perhitungan!F28) -> Rp3,000.00 | H29: 13%
B30: =Perhitungan!B29 ->  | D30: =IF($B30="","",Perhitungan!G29) ->  | F30: =IF($B30="","",Perhitungan!F29) -> 
B31: =Perhitungan!B30 ->  | D31: =IF($B31="","",Perhitungan!G30) ->  | F31: =IF($B31="","",Perhitungan!F30) -> 
B32: =Perhitungan!B31 ->  | D32: =IF($B32="","",Perhitungan!G31) ->  | F32: =IF($B32="","",Perhitungan!F31) -> 
B33: =Perhitungan!B32 ->  | D33: =IF($B33="","",Perhitungan!G32) ->  | F33: =IF($B33="","",Perhitungan!F32) -> 
B34: =Perhitungan!B33 ->  | D34: =IF($B34="","",Perhitungan!G33) ->  | F34: =IF($B34="","",Perhitungan!F33) -> 
B35: =Perhitungan!B34 ->  | D35: =IF($B35="","",Perhitungan!G34) ->  | F35: =IF($B35="","",Perhitungan!F34) -> 
B36: =Perhitungan!B35 ->  | D36: =IF($B36="","",Perhitungan!G35) ->  | F36: =IF($B36="","",Perhitungan!F35) -> 
B37: =Perhitungan!B36 ->  | D37: =IF($B37="","",Perhitungan!G36) ->  | F37: =IF($B37="","",Perhitungan!F36) -> 
B38: =Perhitungan!B37 ->  | D38: =IF($B38="","",Perhitungan!G37) ->  | F38: =IF($B38="","",Perhitungan!F37) -> 
B39: =Perhitungan!B38 ->  | D39: =IF($B39="","",Perhitungan!G38) ->  | F39: =IF($B39="","",Perhitungan!F38) -> 
B40: =Perhitungan!B39 ->  | D40: =IF($B40="","",Perhitungan!G39) ->  | F40: =IF($B40="","",Perhitungan!F39) -> 

Sheet Input Data Keuangan
B2: INPUT DATA KEUANGAN ANDA
B3: ANDA DAPAT MENENTUKAN HINGGA 25 METRIK UTAMA UNTUK 7 TAHUN
B4: Klik untuk menampilkan Laporan Keuangan
B5: NAMA METRIK | C5: 2010 | D5: 2011 | E5: 2012 | F5: 2013 | G5: 2014 | H5: 2015 | I5: 2016
B6: PENGHASILAN | C6: Rp1,250,000,000.00 | D6: Rp1,341,374,500.00 | E6: Rp1,427,283,800.00 | F6: Rp1,506,874,600.00 | G6: Rp1,650,445,600.00 | H6: Rp1,800,266,300.00 | I6: Rp1,805,838,800.00
B7: PENGELUARAN OPERASI | C7: Rp650,000,000.00 | D7: Rp709,623,100.00 | E7: Rp759,248,600.00 | F7: Rp789,012,700.00 | G7: Rp816,743,700.00 | H7: Rp808,833,300.00 | I7: Rp944,194,500.00
B8: LABA OPERASI | C8: Rp600,000,000.00 | D8: Rp642,073,000.00 | E8: Rp688,576,900.00 | F8: Rp756,432,500.00 | G8: Rp767,552,600.00 | H8: Rp773,178,300.00 | I8: Rp734,259,900.00
B9: DEPRESIASI | C9: Rp45,000,000.00 | D9: Rp45,177,700.00 | E9: Rp46,569,200.00 | F9: Rp49,742,100.00 | G9: Rp50,241,100.00 | H9: Rp50,684,200.00 | I9: Rp55,468,800.00
B10: BUNGA | C10: Rp25,000,000.00 | D10: Rp27,458,200.00 | E10: Rp28,931,100.00 | F10: Rp31,361,200.00 | G10: Rp31,485,300.00 | H10: Rp33,383,000.00 | I10: Rp37,894,700.00
B11: LABA BERSIH | C11: Rp540,000,000.00 | D11: Rp547,610,750.00 | E11: Rp558,608,100.00 | F11: Rp597,479,500.00 | G11: Rp614,835,900.00 | H11: Rp662,721,000.00 | I11: Rp674,748,500.00
B12: PAJAK | C12: Rp220,000,000.00 | D12: Rp239,205,400.00 | E12: Rp255,767,400.00 | F12: Rp274,988,600.00 | G12: Rp283,356,700.00 | H12: Rp294,245,300.00 | I12: Rp314,082,500.00
B13: LABA SETELAH PAJAK | C13: Rp320,000,000.00 | D13: Rp349,434,900.00 | E13: Rp384,185,300.00 | F13: Rp398,950,500.00 | G13: Rp406,077,300.00 | H13: Rp424,382,000.00 | I13: Rp502,476,800.00
B14: METRIK 1 | C14: Rp128,000.00 | D14: Rp128,100.00 | E14: Rp137,800.00 | F14: Rp142,900.00 | G14: Rp155,700.00 | H14: Rp167,800.00 | I14: Rp199,600.00
B15: METRIK 2 | C15: Rp182,000.00 | D15: Rp185,900.00 | E15: Rp192,200.00 | F15: Rp201,700.00 | G15: Rp204,800.00 | H15: Rp218,400.00 | I15: Rp260,100.00
B16: METRIK 3 | C16: Rp191,000.00 | D16: Rp205,500.00 | E16: Rp218,700.00 | F16: Rp231,900.00 | G16: Rp246,700.00 | H16: Rp263,900.00 | I16: Rp310,800.00
B17: METRIK 4 | C17: Rp121,000.00 | D17: Rp122,100.00 | E17: Rp125,900.00 | F17: Rp137,000.00 | G17: Rp137,600.00 | H17: Rp145,900.00 | I17: Rp149,200.00
B18: METRIK 5 | C18: Rp7,500.00 | D18: Rp7,900.00 | E18: Rp8,500.00 | F18: Rp8,900.00 | G18: Rp9,100.00 | H18: Rp10,000.00 | I18: Rp10,300.00
B19: METRIK 6 | C19: Rp2,300.00 | D19: Rp2,500.00 | E19: Rp2,700.00 | F19: Rp2,800.00 | G19: Rp2,900.00 | H19: Rp3,000.00 | I19: Rp3,400.00

Sheet Pengaturan Metrik Utama
B2: TENTUKAN METRIK UTAMA DI SINI
B3: PILIH HINGGA 5 METRIK UTAMA UNTUK DIPERLIHATKAN DI ATAS LAPORAN
B4: Klik untuk menampilkan Laporan Keuangan
B5: 1 | C5: PENGHASILAN | E5: =IF(ISBLANK(C5),"← Silakan pilih nilai dari menu menurun",IF(COUNTIF($C$5:C5,C5)>1,"Anda telah memilih "&C5&" lebih dari sekali.","")) -> 
B6: 2 | C6: LABA BERSIH | E6: =IF(ISBLANK(C6),"← Silakan pilih nilai dari menu menurun",IF(COUNTIF($C$5:C6,C6)>1,"Anda telah memilih "&C6&" lebih dari sekali.","")) -> 
B7: 3 | C7: BUNGA | E7: =IF(ISBLANK(C7),"← Silakan pilih nilai dari menu menurun",IF(COUNTIF($C$5:C7,C7)>1,"Anda telah memilih "&C7&" lebih dari sekali.","")) -> 
B8: 4 | C8: DEPRESIASI | E8: =IF(ISBLANK(C8),"← Silakan pilih nilai dari menu menurun",IF(COUNTIF($C$5:C8,C8)>1,"Anda telah memilih "&C8&" lebih dari sekali.","")) -> 
B9: 5 | C9: LABA OPERASI | E9: =IF(ISBLANK(C9),"← Silakan pilih nilai dari menu menurun",IF(COUNTIF($C$5:C9,C9)>1,"Anda telah memilih "&C9&" lebih dari sekali.","")) -> 

Sheet Perhitungan (hidden)
A1: Lembar kerja digunakan untuk perhitungan Laporan Keuangan dan harus tetap tersembunyi.
D2: Posisi
B3: Tahun ini | C3: =TahunDipilih -> 2016 | D3: =MATCH(C3,lstTahun,0)+1 -> 8
B4: Tahun Sebelumnya | C4: =C3-1 -> 2015 | D4: =MATCH(C4,lstTahun,0)+1 -> 7
B6: Posisi | C6: =MATCH(C7,lstTahun,0)+1 -> 4 | D6: =MATCH(D7,lstTahun,0)+1 -> 5 | E6: =MATCH(E7,lstTahun,0)+1 -> 6 | F6: =MATCH(F7,lstTahun,0)+1 -> 7 | G6: =MATCH(G7,lstTahun,0)+1 -> 8 | I6: =COUNT(C6:G6) -> 5
B7: Metrik Utama | C7: =D7-1 -> 2012 | D7: =E7-1 -> 2013 | E7: =F7-1 -> 2014 | F7: =G7-1 -> 2015 | G7: =C3 -> 2016
A8: =MATCH(B8,'Input Data Keuangan'!$B$6:$B$30,0) -> 1 | B8: =IF('Pengaturan Metrik Utama'!C5="","",'Pengaturan Metrik Utama'!C5) -> PENGHASILAN | C8: =IFERROR(INDEX('Input Data Keuangan'!$B$6:$I$30,$A8,C$6),NA()) -> 1427283800 | D8: =IFERROR(INDEX('Input Data Keuangan'!$B$6:$I$30,$A8,D$6),NA()) -> 1506874600 | E8: =IFERROR(INDEX('Input Data Keuangan'!$B$6:$I$30,$A8,E$6),NA()) -> 1650445600 | F8: =IFERROR(INDEX('Input Data Keuangan'!$B$6:$I$30,$A8,F$6),NA()) -> 1800266300 | G8: =IFERROR(INDEX('Input Data Keuangan'!$B$6:$I$30,$A8,G$6),NA()) -> 1805838800 | H8: =IFERROR(G8/F8-1,"") -> 0%
A9: =MATCH(B9,'Input Data Keuangan'!$B$6:$B$30,0) -> 6 | B9: =IF('Pengaturan Metrik Utama'!C6="","",'Pengaturan Metrik Utama'!C6) -> LABA BERSIH | C9: =IFERROR(INDEX('Input Data Keuangan'!$B$6:$I$30,$A9,C$6),NA()) -> 558608100 | D9: =IFERROR(INDEX('Input Data Keuangan'!$B$6:$I$30,$A9,D$6),NA()) -> 597479500 | E9: =IFERROR(INDEX('Input Data Keuangan'!$B$6:$I$30,$A9,E$6),NA()) -> 614835900 | F9: =IFERROR(INDEX('Input Data Keuangan'!$B$6:$I$30,$A9,F$6),NA()) -> 662721000 | G9: =IFERROR(INDEX('Input Data Keuangan'!$B$6:$I$30,$A9,G$6),NA()) -> 674748500 | H9: =IFERROR(G9/F9-1,"") -> 2%
A10: =MATCH(B10,'Input Data Keuangan'!$B$6:$B$30,0) -> 5 | B10: =IF('Pengaturan Metrik Utama'!C7="","",'Pengaturan Metrik Utama'!C7) -> BUNGA | C10: =IFERROR(INDEX('Input Data Keuangan'!$B$6:$I$30,$A10,C$6),NA()) -> 28931100 | D10: =IFERROR(INDEX('Input Data Keuangan'!$B$6:$I$30,$A10,D$6),NA()) -> 31361200 | E10: =IFERROR(INDEX('Input Data Keuangan'!$B$6:$I$30,$A10,E$6),NA()) -> 31485300 | F10: =IFERROR(INDEX('Input Data Keuangan'!$B$6:$I$30,$A10,F$6),NA()) -> 33383000 | G10: =IFERROR(INDEX('Input Data Keuangan'!$B$6:$I$30,$A10,G$6),NA()) -> 37894700 | H10: 14%
A11: =MATCH(B11,'Input Data Keuangan'!$B$6:$B$30,0) -> 4 | B11: =IF('Pengaturan Metrik Utama'!C8="","",'Pengaturan Metrik Utama'!C8) -> DEPRESIASI | C11: =IFERROR(INDEX('Input Data Keuangan'!$B$6:$I$30,$A11,C$6),NA()) -> 46569200 | D11: =IFERROR(INDEX('Input Data Keuangan'!$B$6:$I$30,$A11,D$6),NA()) -> 49742100 | E11: =IFERROR(INDEX('Input Data Keuangan'!$B$6:$I$30,$A11,E$6),NA()) -> 50241100 | F11: =IFERROR(INDEX('Input Data Keuangan'!$B$6:$I$30,$A11,F$6),NA()) -> 50684200 | G11: =IFERROR(INDEX('Input Data Keuangan'!$B$6:$I$30,$A11,G$6),NA()) -> 55468800 | H11: 9%
A12: =MATCH(B12,'Input Data Keuangan'!$B$6:$B$30,0) -> 3 | B12: =IF('Pengaturan Metrik Utama'!C9="","",'Pengaturan Metrik Utama'!C9) -> LABA OPERASI | C12: =IFERROR(INDEX('Input Data Keuangan'!$B$6:$I$30,$A12,C$6),NA()) -> 688576900 | D12: =IFERROR(INDEX('Input Data Keuangan'!$B$6:$I$30,$A12,D$6),NA()) -> 756432500 | E12: =IFERROR(INDEX('Input Data Keuangan'!$B$6:$I$30,$A12,E$6),NA()) -> 767552600 | F12: =IFERROR(INDEX('Input Data Keuangan'!$B$6:$I$30,$A12,F$6),NA()) -> 773178300 | G12: =IFERROR(INDEX('Input Data Keuangan'!$B$6:$I$30,$A12,G$6),NA()) -> 734259900 | H12: -5%
B14: Semua Metrik (berfungsi hingga di 25 metrik)
A15: =ROWS($B$15:B15) -> 1 | B15: =IF('Input Data Keuangan'!B6=0,"",'Input Data Keuangan'!B6) -> PENGHASILAN | C15: =IF($B15="",NA(),IFERROR(INDEX('Input Data Keuangan'!$B$6:$I$30,$A15,C$6),NA())) -> 1427283800 | D15: =IF($B15="",NA(),IFERROR(INDEX('Input Data Keuangan'!$B$6:$I$30,$A15,D$6),NA())) -> 1506874600 | E15: =IF($B15="",NA(),IFERROR(INDEX('Input Data Keuangan'!$B$6:$I$30,$A15,E$6),NA())) -> 1650445600 | F15: =IF($B15="",NA(),IFERROR(INDEX('Input Data Keuangan'!$B$6:$I$30,$A15,F$6),NA())) -> 1800266300 | G15: =IF($B15="",NA(),IFERROR(INDEX('Input Data Keuangan'!$B$6:$I$30,$A15,G$6),NA())) -> 1805838800
A16: =ROWS($B$15:B16) -> 2 | B16: =IF('Input Data Keuangan'!B7=0,"",'Input Data Keuangan'!B7) -> PENGELUARAN OPERASI | C16: =IF($B16="",NA(),IFERROR(INDEX('Input Data Keuangan'!$B$6:$I$30,$A16,C$6),NA())) -> 759248600 | D16: =IF($B16="",NA(),IFERROR(INDEX('Input Data Keuangan'!$B$6:$I$30,$A16,D$6),NA())) -> 789012700 | E16: =IF($B16="",NA(),IFERROR(INDEX('Input Data Keuangan'!$B$6:$I$30,$A16,E$6),NA())) -> 816743700 | F16: =IF($B16="",NA(),IFERROR(INDEX('Input Data Keuangan'!$B$6:$I$30,$A16,F$6),NA())) -> 808833300 | G16: =IF($B16="",NA(),IFERROR(INDEX('Input Data Keuangan'!$B$6:$I$30,$A16,G$6),NA())) -> 944194500
A17: =ROWS($B$15:B17) -> 3 | B17: =IF('Input Data Keuangan'!B8=0,"",'Input Data Keuangan'!B8) -> LABA OPERASI | C17: =IF($B17="",NA(),IFERROR(INDEX('Input Data Keuangan'!$B$6:$I$30,$A17,C$6),NA())) -> 688576900 | D17: =IF($B17="",NA(),IFERROR(INDEX('Input Data Keuangan'!$B$6:$I$30,$A17,D$6),NA())) -> 756432500 | E17: =IF($B17="",NA(),IFERROR(INDEX('Input Data Keuangan'!$B$6:$I$30,$A17,E$6),NA())) -> 767552600 | F17: =IF($B17="",NA(),IFERROR(INDEX('Input Data Keuangan'!$B$6:$I$30,$A17,F$6),NA())) -> 773178300 | G17: =IF($B17="",NA(),IFERROR(INDEX('Input Data Keuangan'!$B$6:$I$30,$A17,G$6),NA())) -> 734259900
A18: =ROWS($B$15:B18) -> 4 | B18: =IF('Input Data Keuangan'!B9=0,"",'Input Data Keuangan'!B9) -> DEPRESIASI | C18: =IF($B18="",NA(),IFERROR(INDEX('Input Data Keuangan'!$B$6:$I$30,$A18,C$6),NA())) -> 46569200 | D18: =IF($B18="",NA(),IFERROR(INDEX('Input Data Keuangan'!$B$6:$I$30,$A18,D$6),NA())) -> 49742100 | E18: =IF($B18="",NA(),IFERROR(INDEX('Input Data Keuangan'!$B$6:$I$30,$A18,E$6),NA())) -> 50241100 | F18: =IF($B18="",NA(),IFERROR(INDEX('Input Data Keuangan'!$B$6:$I$30,$A18,F$6),NA())) -> 50684200 | G18: =IF($B18="",NA(),IFERROR(INDEX('Input Data Keuangan'!$B$6:$I$30,$A18,G$6),NA())) -> 55468800
A19: =ROWS($B$15:B19) -> 5 | B19: =IF('Input Data Keuangan'!B10=0,"",'Input Data Keuangan'!B10) -> BUNGA | C19: =IF($B19="",NA(),IFERROR(INDEX('Input Data Keuangan'!$B$6:$I$30,$A19,C$6),NA())) -> 28931100 | D19: =IF($B19="",NA(),IFERROR(INDEX('Input Data Keuangan'!$B$6:$I$30,$A19,D$6),NA())) -> 31361200 | E19: =IF($B19="",NA(),IFERROR(INDEX('Input Data Keuangan'!$B$6:$I$30,$A19,E$6),NA())) -> 31485300 | F19: =IF($B19="",NA(),IFERROR(INDEX('Input Data Keuangan'!$B$6:$I$30,$A19,F$6),NA())) -> 33383000 | G19: =IF($B19="",NA(),IFERROR(INDEX('Input Data Keuangan'!$B$6:$I$30,$A19,G$6),NA())) -> 37894700
A20: =ROWS($B$15:B20) -> 6 | B20: =IF('Input Data Keuangan'!B11=0,"",'Input Data Keuangan'!B11) -> LABA BERSIH | C20: =IF($B20="",NA(),IFERROR(INDEX('Input Data Keuangan'!$B$6:$I$30,$A20,C$6),NA())) -> 558608100 | D20: =IF($B20="",NA(),IFERROR(INDEX('Input Data Keuangan'!$B$6:$I$30,$A20,D$6),NA())) -> 597479500 | E20: =IF($B20="",NA(),IFERROR(INDEX('Input Data Keuangan'!$B$6:$I$30,$A20,E$6),NA())) -> 614835900 | F20: =IF($B20="",NA(),IFERROR(INDEX('Input Data Keuangan'!$B$6:$I$30,$A20,F$6),NA())) -> 662721000 | G20: =IF($B20="",NA(),IFERROR(INDEX('Input Data Keuangan'!$B$6:$I$30,$A20,G$6),NA())) -> 674748500
A21: =ROWS($B$15:B21) -> 7 | B21: =IF('Input Data Keuangan'!B12=0,"",'Input Data Keuangan'!B12) -> PAJAK | C21: =IF($B21="",NA(),IFERROR(INDEX('Input Data Keuangan'!$B$6:$I$30,$A21,C$6),NA())) -> 255767400 | D21: =IF($B21="",NA(),IFERROR(INDEX('Input Data Keuangan'!$B$6:$I$30,$A21,D$6),NA())) -> 274988600 | E21: =IF($B21="",NA(),IFERROR(INDEX('Input Data Keuangan'!$B$6:$I$30,$A21,E$6),NA())) -> 283356700 | F21: =IF($B21="",NA(),IFERROR(INDEX('Input Data Keuangan'!$B$6:$I$30,$A21,F$6),NA())) -> 294245300 | G21: =IF($B21="",NA(),IFERROR(INDEX('Input Data Keuangan'!$B$6:$I$30,$A21,G$6),NA())) -> 314082500
A22: =ROWS($B$15:B22) -> 8 | B22: =IF('Input Data Keuangan'!B13=0,"",'Input Data Keuangan'!B13) -> LABA SETELAH PAJAK | C22: =IF($B22="",NA(),IFERROR(INDEX('Input Data Keuangan'!$B$6:$I$30,$A22,C$6),NA())) -> 384185300 | D22: =IF($B22="",NA(),IFERROR(INDEX('Input Data Keuangan'!$B$6:$I$30,$A22,D$6),NA())) -> 398950500 | E22: =IF($B22="",NA(),IFERROR(INDEX('Input Data Keuangan'!$B$6:$I$30,$A22,E$6),NA())) -> 406077300 | F22: =IF($B22="",NA(),IFERROR(INDEX('Input Data Keuangan'!$B$6:$I$30,$A22,F$6),NA())) -> 424382000 | G22: =IF($B22="",NA(),IFERROR(INDEX('Input Data Keuangan'!$B$6:$I$30,$A22,G$6),NA())) -> 502476800
A23: =ROWS($B$15:B23) -> 9 | B23: =IF('Input Data Keuangan'!B14=0,"",'Input Data Keuangan'!B14) -> METRIK 1 | C23: =IF($B23="",NA(),IFERROR(INDEX('Input Data Keuangan'!$B$6:$I$30,$A23,C$6),NA())) -> 137800 | D23: =IF($B23="",NA(),IFERROR(INDEX('Input Data Keuangan'!$B$6:$I$30,$A23,D$6),NA())) -> 142900 | E23: =IF($B23="",NA(),IFERROR(INDEX('Input Data Keuangan'!$B$6:$I$30,$A23,E$6),NA())) -> 155700 | F23: =IF($B23="",NA(),IFERROR(INDEX('Input Data Keuangan'!$B$6:$I$30,$A23,F$6),NA())) -> 167800 | G23: =IF($B23="",NA(),IFERROR(INDEX('Input Data Keuangan'!$B$6:$I$30,$A23,G$6),NA())) -> 199600
A24: =ROWS($B$15:B24) -> 10 | B24: =IF('Input Data Keuangan'!B15=0,"",'Input Data Keuangan'!B15) -> METRIK 2 | C24: =IF($B24="",NA(),IFERROR(INDEX('Input Data Keuangan'!$B$6:$I$30,$A24,C$6),NA())) -> 192200 | D24: =IF($B24="",NA(),IFERROR(INDEX('Input Data Keuangan'!$B$6:$I$30,$A24,D$6),NA())) -> 201700 | E24: =IF($B24="",NA(),IFERROR(INDEX('Input Data Keuangan'!$B$6:$I$30,$A24,E$6),NA())) -> 204800 | F24: =IF($B24="",NA(),IFERROR(INDEX('Input Data Keuangan'!$B$6:$I$30,$A24,F$6),NA())) -> 218400 | G24: =IF($B24="",NA(),IFERROR(INDEX('Input Data Keuangan'!$B$6:$I$30,$A24,G$6),NA())) -> 260100
A25: =ROWS($B$15:B25) -> 11 | B25: =IF('Input Data Keuangan'!B16=0,"",'Input Data Keuangan'!B16) -> METRIK 3 | C25: =IF($B25="",NA(),IFERROR(INDEX('Input Data Keuangan'!$B$6:$I$30,$A25,C$6),NA())) -> 218700 | D25: =IF($B25="",NA(),IFERROR(INDEX('Input Data Keuangan'!$B$6:$I$30,$A25,D$6),NA())) -> 231900 | E25: =IF($B25="",NA(),IFERROR(INDEX('Input Data Keuangan'!$B$6:$I$30,$A25,E$6),NA())) -> 246700 | F25: =IF($B25="",NA(),IFERROR(INDEX('Input Data Keuangan'!$B$6:$I$30,$A25,F$6),NA())) -> 263900 | G25: =IF($B25="",NA(),IFERROR(INDEX('Input Data Keuangan'!$B$6:$I$30,$A25,G$6),NA())) -> 310800
A26: =ROWS($B$15:B26) -> 12 | B26: =IF('Input Data Keuangan'!B17=0,"",'Input Data Keuangan'!B17) -> METRIK 4 | C26: =IF($B26="",NA(),IFERROR(INDEX('Input Data Keuangan'!$B$6:$I$30,$A26,C$6),NA())) -> 125900 | D26: =IF($B26="",NA(),IFERROR(INDEX('Input Data Keuangan'!$B$6:$I$30,$A26,D$6),NA())) -> 137000 | E26: =IF($B26="",NA(),IFERROR(INDEX('Input Data Keuangan'!$B$6:$I$30,$A26,E$6),NA())) -> 137600 | F26: =IF($B26="",NA(),IFERROR(INDEX('Input Data Keuangan'!$B$6:$I$30,$A26,F$6),NA())) -> 145900 | G26: =IF($B26="",NA(),IFERROR(INDEX('Input Data Keuangan'!$B$6:$I$30,$A26,G$6),NA())) -> 149200
A27: =ROWS($B$15:B27) -> 13 | B27: =IF('Input Data Keuangan'!B18=0,"",'Input Data Keuangan'!B18) -> METRIK 5 | C27: =IF($B27="",NA(),IFERROR(INDEX('Input Data Keuangan'!$B$6:$I$30,$A27,C$6),NA())) -> 8500 | D27: =IF($B27="",NA(),IFERROR(INDEX('Input Data Keuangan'!$B$6:$I$30,$A27,D$6),NA())) -> 8900 | E27: =IF($B27="",NA(),IFERROR(INDEX('Input Data Keuangan'!$B$6:$I$30,$A27,E$6),NA())) -> 9100 | F27: =IF($B27="",NA(),IFERROR(INDEX('Input Data Keuangan'!$B$6:$I$30,$A27,F$6),NA())) -> 10000 | G27: =IF($B27="",NA(),IFERROR(INDEX('Input Data Keuangan'!$B$6:$I$30,$A27,G$6),NA())) -> 10300
A28: =ROWS($B$15:B28) -> 14 | B28: =IF('Input Data Keuangan'!B19=0,"",'Input Data Keuangan'!B19) -> METRIK 6 | C28: =IF($B28="",NA(),IFERROR(INDEX('Input Data Keuangan'!$B$6:$I$30,$A28,C$6),NA())) -> 2700 | D28: =IF($B28="",NA(),IFERROR(INDEX('Input Data Keuangan'!$B$6:$I$30,$A28,D$6),NA())) -> 2800 | E28: =IF($B28="",NA(),IFERROR(INDEX('Input Data Keuangan'!$B$6:$I$30,$A28,E$6),NA())) -> 2900 | F28: =IF($B28="",NA(),IFERROR(INDEX('Input Data Keuangan'!$B$6:$I$30,$A28,F$6),NA())) -> 3000 | G28: =IF($B28="",NA(),IFERROR(INDEX('Input Data Keuangan'!$B$6:$I$30,$A28,G$6),NA())) -> 3400
A29: =ROWS($B$15:B29) -> 15 | B29: =IF('Input Data Keuangan'!B20=0,"",'Input Data Keuangan'!B20) ->  | C29: =IF(B29="",NA(),IFERROR(INDEX('Input Data Keuangan'!$B$6:$I$30,$A29,C$6),NA())) ->  | D29: =IF(B29="",NA(),IFERROR(INDEX('Input Data Keuangan'!$B$6:$I$30,$A29,D$6),NA())) ->  | E29: =IF(B29="",NA(),IFERROR(INDEX('Input Data Keuangan'!$B$6:$I$30,$A29,E$6),NA())) ->  | F29: =IF(B29="",NA(),IFERROR(INDEX('Input Data Keuangan'!$B$6:$I$30,$A29,F$6),NA())) ->  | G29: =IF(B29="",NA(),IFERROR(INDEX('Input Data Keuangan'!$B$6:$I$30,$A29,G$6),NA())) -> 
A30: =ROWS($B$15:B30) -> 16 | B30: =IF('Input Data Keuangan'!B21=0,"",'Input Data Keuangan'!B21) ->  | C30: =IF(B30="",NA(),IFERROR(INDEX('Input Data Keuangan'!$B$6:$I$30,$A30,C$6),NA())) ->  | D30: =IF(B30="",NA(),IFERROR(INDEX('Input Data Keuangan'!$B$6:$I$30,$A30,D$6),NA())) ->  | E30: =IF(B30="",NA(),IFERROR(INDEX('Input Data Keuangan'!$B$6:$I$30,$A30,E$6),NA())) ->  | F30: =IF(B30="",NA(),IFERROR(INDEX('Input Data Keuangan'!$B$6:$I$30,$A30,F$6),NA())) ->  | G30: =IF(B30="",NA(),IFERROR(INDEX('Input Data Keuangan'!$B$6:$I$30,$A30,G$6),NA())) -> 
A31: =ROWS($B$15:B31) -> 17 | B31: =IF('Input Data Keuangan'!B22=0,"",'Input Data Keuangan'!B22) ->  | C31: =IF(B31="",NA(),IFERROR(INDEX('Input Data Keuangan'!$B$6:$I$30,$A31,C$6),NA())) ->  | D31: =IF(B31="",NA(),IFERROR(INDEX('Input Data Keuangan'!$B$6:$I$30,$A31,D$6),NA())) ->  | E31: =IF(B31="",NA(),IFERROR(INDEX('Input Data Keuangan'!$B$6:$I$30,$A31,E$6),NA())) ->  | F31: =IF(B31="",NA(),IFERROR(INDEX('Input Data Keuangan'!$B$6:$I$30,$A31,F$6),NA())) ->  | G31: =IF(B31="",NA(),IFERROR(INDEX('Input Data Keuangan'!$B$6:$I$30,$A31,G$6),NA())) -> 
A32: =ROWS($B$15:B32) -> 18 | B32: =IF('Input Data Keuangan'!B23=0,"",'Input Data Keuangan'!B23) ->  | C32: =IF(B32="",NA(),IFERROR(INDEX('Input Data Keuangan'!$B$6:$I$30,$A32,C$6),NA())) ->  | D32: =IF(B32="",NA(),IFERROR(INDEX('Input Data Keuangan'!$B$6:$I$30,$A32,D$6),NA())) ->  | E32: =IF(B32="",NA(),IFERROR(INDEX('Input Data Keuangan'!$B$6:$I$30,$A32,E$6),NA())) ->  | F32: =IF(B32="",NA(),IFERROR(INDEX('Input Data Keuangan'!$B$6:$I$30,$A32,F$6),NA())) ->  | G32: =IF(B32="",NA(),IFERROR(INDEX('Input Data Keuangan'!$B$6:$I$30,$A32,G$6),NA())) -> 
A33: =ROWS($B$15:B33) -> 19 | B33: =IF('Input Data Keuangan'!B24=0,"",'Input Data Keuangan'!B24) ->  | C33: =IF(B33="",NA(),IFERROR(INDEX('Input Data Keuangan'!$B$6:$I$30,$A33,C$6),NA())) ->  | D33: =IF(B33="",NA(),IFERROR(INDEX('Input Data Keuangan'!$B$6:$I$30,$A33,D$6),NA())) ->  | E33: =IF(B33="",NA(),IFERROR(INDEX('Input Data Keuangan'!$B$6:$I$30,$A33,E$6),NA())) ->  | F33: =IF(B33="",NA(),IFERROR(INDEX('Input Data Keuangan'!$B$6:$I$30,$A33,F$6),NA())) ->  | G33: =IF(B33="",NA(),IFERROR(INDEX('Input Data Keuangan'!$B$6:$I$30,$A33,G$6),NA())) -> 
A34: =ROWS($B$15:B34) -> 20 | B34: =IF('Input Data Keuangan'!B25=0,"",'Input Data Keuangan'!B25) ->  | C34: =IF(B34="",NA(),IFERROR(INDEX('Input Data Keuangan'!$B$6:$I$30,$A34,C$6),NA())) ->  | D34: =IF(B34="",NA(),IFERROR(INDEX('Input Data Keuangan'!$B$6:$I$30,$A34,D$6),NA())) ->  | E34: =IF(B34="",NA(),IFERROR(INDEX('Input Data Keuangan'!$B$6:$I$30,$A34,E$6),NA())) ->  | F34: =IF(B34="",NA(),IFERROR(INDEX('Input Data Keuangan'!$B$6:$I$30,$A34,F$6),NA())) ->  | G34: =IF(B34="",NA(),IFERROR(INDEX('Input Data Keuangan'!$B$6:$I$30,$A34,G$6),NA())) -> 
A35: =ROWS($B$15:B35) -> 21 | B35: =IF('Input Data Keuangan'!B26=0,"",'Input Data Keuangan'!B26) ->  | C35: =IF(B35="",NA(),IFERROR(INDEX('Input Data Keuangan'!$B$6:$I$30,$A35,C$6),NA())) ->  | D35: =IF(B35="",NA(),IFERROR(INDEX('Input Data Keuangan'!$B$6:$I$30,$A35,D$6),NA())) ->  | E35: =IF(B35="",NA(),IFERROR(INDEX('Input Data Keuangan'!$B$6:$I$30,$A35,E$6),NA())) ->  | F35: =IF(B35="",NA(),IFERROR(INDEX('Input Data Keuangan'!$B$6:$I$30,$A35,F$6),NA())) ->  | G35: =IF(B35="",NA(),IFERROR(INDEX('Input Data Keuangan'!$B$6:$I$30,$A35,G$6),NA())) -> 
A36: =ROWS($B$15:B36) -> 22 | B36: =IF('Input Data Keuangan'!B27=0,"",'Input Data Keuangan'!B27) ->  | C36: =IF(B36="",NA(),IFERROR(INDEX('Input Data Keuangan'!$B$6:$I$30,$A36,C$6),NA())) ->  | D36: =IF(B36="",NA(),IFERROR(INDEX('Input Data Keuangan'!$B$6:$I$30,$A36,D$6),NA())) ->  | E36: =IF(B36="",NA(),IFERROR(INDEX('Input Data Keuangan'!$B$6:$I$30,$A36,E$6),NA())) ->  | F36: =IF(B36="",NA(),IFERROR(INDEX('Input Data Keuangan'!$B$6:$I$30,$A36,F$6),NA())) ->  | G36: =IF(B36="",NA(),IFERROR(INDEX('Input Data Keuangan'!$B$6:$I$30,$A36,G$6),NA())) -> 
A37: =ROWS($B$15:B37) -> 23 | B37: =IF('Input Data Keuangan'!B28=0,"",'Input Data Keuangan'!B28) ->  | C37: =IF(B37="",NA(),IFERROR(INDEX('Input Data Keuangan'!$B$6:$I$30,$A37,C$6),NA())) ->  | D37: =IF(B37="",NA(),IFERROR(INDEX('Input Data Keuangan'!$B$6:$I$30,$A37,D$6),NA())) ->  | E37: =IF(B37="",NA(),IFERROR(INDEX('Input Data Keuangan'!$B$6:$I$30,$A37,E$6),NA())) ->  | F37: =IF(B37="",NA(),IFERROR(INDEX('Input Data Keuangan'!$B$6:$I$30,$A37,F$6),NA())) ->  | G37: =IF(B37="",NA(),IFERROR(INDEX('Input Data Keuangan'!$B$6:$I$30,$A37,G$6),NA())) -> 
A38: =ROWS($B$15:B38) -> 24 | B38: =IF('Input Data Keuangan'!B29=0,"",'Input Data Keuangan'!B29) ->  | C38: =IF(B38="",NA(),IFERROR(INDEX('Input Data Keuangan'!$B$6:$I$30,$A38,C$6),NA())) ->  | D38: =IF(B38="",NA(),IFERROR(INDEX('Input Data Keuangan'!$B$6:$I$30,$A38,D$6),NA())) ->  | E38: =IF(B38="",NA(),IFERROR(INDEX('Input Data Keuangan'!$B$6:$I$30,$A38,E$6),NA())) ->  | F38: =IF(B38="",NA(),IFERROR(INDEX('Input Data Keuangan'!$B$6:$I$30,$A38,F$6),NA())) ->  | G38: =IF(B38="",NA(),IFERROR(INDEX('Input Data Keuangan'!$B$6:$I$30,$A38,G$6),NA())) -> 
A39: =ROWS($B$15:B39) -> 25 | B39: =IF('Input Data Keuangan'!B30=0,"",'Input Data Keuangan'!B30) ->  | C39: =IF(B39="",NA(),IFERROR(INDEX('Input Data Keuangan'!$B$6:$I$30,$A39,C$6),NA())) ->  | D39: =IF(B39="",NA(),IFERROR(INDEX('Input Data Keuangan'!$B$6:$I$30,$A39,D$6),NA())) ->  | E39: =IF(B39="",NA(),IFERROR(INDEX('Input Data Keuangan'!$B$6:$I$30,$A39,E$6),NA())) ->  | F39: =IF(B39="",NA(),IFERROR(INDEX('Input Data Keuangan'!$B$6:$I$30,$A39,F$6),NA())) ->  | G39: =IF(B39="",NA(),IFERROR(INDEX('Input Data Keuangan'!$B$6:$I$30,$A39,G$6),NA())) -> 
